bitfinex/quotes_ETHUSD_20250602
["timestamp","ask_amount","ask_price","bid_price","bid_amount"]
[1748860266578,0.8308,2485.6,2485.4,4.02342094]
[1748860266797,0.8308,2485.6,2485.5,4.02333534]
[1748860267012,0.8308,2485.6,2485.4,5.19042094]
[1748860267013,0.8308,2485.6,2485.4,5.19046603]
[1748860268291,0.8308,2485.6,2485.3,4.02358667]
[1748860268490,0.7764,2485.3,2484.9,4.0241457]
[1748860268801,3.56516383,2485.0,2484.8,1.167]
[1748860269596,0.7978,2484.9,2484.8,1.167]
[1748860269999,0.7978,2484.9,2484.5,4.0248429]
[1748860270204,0.83871116,2484.8,2484.5,1.167]
[1748860270483,0.83871116,2484.8,2484.5,5.19194244]
[1748860270917,0.83871116,2484.8,2484.5,5.19195178]
[1748860271322,0.83871116,2484.8,2484.5,1.167]
[1748860271482,0.83871116,2484.8,2484.5,5.1919432]
[1748860272791,0.83871116,2484.8,2484.3,4.02521878]
[1748860272997,4.84065324,2484.7,2484.3,1.167]
[1748860273193,0.92445282,2484.6,2484.3,1.167]
[1748860273387,0.92445282,2484.6,2484.3,5.19224902]
[1748860274220,0.816,2484.7,2484.3,1.167]
[1748860274425,0.816,2484.7,2484.5,4.02487925]
[1748860274607,0.816,2484.7,2484.6,4.02479272]
[1748860275012,0.7832,2484.9,2484.7,4.02461079]
[1748860275310,0.7832,2484.9,2484.5,4.02481207]
[1748860275502,2.08870133,2484.9,2484.5,4.02481207]
[1748860276729,2.08870133,2484.9,2484.4,4.025056]
[1748860277094,2.08870133,2484.9,2484.3,9.46923472]
[1748860277303,2.08870133,2484.9,2484.6,4.02475297]
[1748860277508,2.08870133,2484.9,2484.7,4.02457384]
[1748860277721,0.7832,2484.9,2484.7,4.02457384]
[1748860278213,0.7832,2484.9,2484.6,4.02472927]
[1748860278398,0.7747,2485.1,2484.2,0.8]
[1748860278755,4.79875979,2485.1,2484.5,4.02490096]
[1748860278904,1.23877788,2485.0,2484.6,4.02478278]
[1748860279327,1.23877788,2485.0,2484.7,4.02458262]
[1748860279662,0.7747,2485.1,2484.9,4.02422254]
[1748860279956,0.7747,2485.1,2484.5,0.7717]
[1748860280156,0.7747,2485.1,2484.8,4.02437815]
[1748860281409,0.7747,2485.1,2484.6,4.02466313]
[1748860281617,0.7747,2485.1,2484.7,4.02462453]
[1748860281827,1.65692701,2485.1,2484.7,4.02462453]
[1748860282407,1.65692701,2485.1,2484.8,4.02443703]
[1748860283315,0.7747,2485.1,2484.8,4.02446877]
[1748860283511,0.7649,2485.4,2485.1,4.02389043]
[1748860284016,0.7649,2485.4,2485.1,4.02382496]
[1748860284216,4.78791551,2485.7,2485.2,4.02382102]
[1748860284516,1.67219155,2485.7,2485.3,4.02361026]
[1748860285100,1.67219155,2485.7,2485.3,4.06384275]
[1748860285302,1.67219155,2485.7,2485.3,4.02356367]
[1748860285733,0.7649,2485.7,2485.1,8.29887856]
[1748860285940,4.78798366,2485.7,2485.2,5.19074144]
[1748860286512,4.78798366,2485.7,2485.2,1.167]
[1748860286729,4.78798626,2485.7,2485.2,5.19082046]
[1748860287207,0.7649,2485.7,2485.2,5.19082046]
[1748860287408,2.00347752,2485.7,2485.2,5.19082046]
[1748860287610,2.00347752,2485.7,2485.3,4.02363138]
[1748860288007,0.7649,2485.7,2485.4,1.167]
[1748860288843,0.7649,2485.7,2485.4,5.19046687]
[1748860289332,0.7649,2485.7,2485.4,1.167]
[1748860291147,0.7649,2485.7,2485.4,5.19043969]
[1748860291660,0.7649,2485.7,2485.5,4.02332823]
[1748860291844,0.7649,2485.7,2485.4,5.19045236]
[1748860292055,0.7649,2485.7,2485.5,4.02327537]
[1748860292543,0.8425,2485.9,2485.5,4.02324973]
[1748860292741,0.8425,2485.9,2485.6,4.02309285]
[1748860292959,0.8425,2485.9,2485.7,4.02295037]
[1748860293459,0.8425,2485.9,2485.6,4.023166]
[1748860293766,0.8425,2485.9,2485.8,4.02284978]
[1748860293767,0.01,2485.9,2485.8,4.02284978]
[1748860295878,0.01,2485.9,2485.5,0.99854236]
[1748860296078,0.8046,2485.4,2484.5,0.7845]
[1748860296234,8.0,2485.1,2484.8,4.02437381]
[1748860296432,8.0,2485.3,2484.9,4.02425331]
[1748860296769,0.8046,2485.4,2485.1,4.0239663]
[1748860297065,0.8046,2485.4,2484.7,1.162]
[1748860297268,0.8046,2485.4,2484.9,4.02420174]
[1748860298028,0.8046,2485.4,2484.7,1.57187366]
[1748860298228,0.8046,2485.4,2485.0,4.02408633]
[1748860298541,0.8046,2485.4,2485.0,4.271]
[1748860301943,8.0,2485.7,2485.1,0.04023492]
[1748860302144,8.0,2485.7,2485.2,4.02373672]
[1748860302671,8.0,2485.7,2484.9,4.79190464]
[1748860302672,8.0,2485.4,2484.9,4.79190464]
[1748860302967,8.0,2485.5,2485.3,1.162]
[1748860303151,8.0,2485.5,2485.4,4.27]
[1748860303355,4.02351041,2485.4,2484.9,0.7677]
[1748860303536,8.36387424,2485.4,2485.0,5.8164644]
[1748860303737,4.79871041,2485.4,2485.0,5.432]
[1748860304111,4.79871041,2485.4,2484.8,4.02438593]
[1748860304112,4.02410005,2485.1,2484.4,8.692]
[1748860304367,8.0,2484.9,2484.5,5.81552519]
[1748860304542,8.0,2484.9,2484.6,0.38452519]
[1748860304747,0.7952,2485.0,2484.5,9.45595301]
[1748860304944,0.8293,2485.2,2484.6,0.38460845]
[1748860305278,1.64182833,2485.1,2484.7,0.38459371]
[1748860305472,0.8293,2485.2,2484.5,9.4559104]
[1748860305641,0.8293,2485.2,2484.6,0.38463893]
[1748860305841,0.8293,2485.2,2484.7,0.38463893]
[1748860306051,0.8293,2485.2,2484.5,9.45586759]
[1748860306251,4.85312582,2485.2,2484.6,4.40935222]
[1748860306581,12.02358004,2485.4,2484.7,0.04024202]
[1748860306753,0.8166,2485.4,2484.8,4.78908475]
[1748860306950,0.8166,2485.4,2484.9,8.29328986]
[1748860307154,0.8166,2485.4,2484.9,8.29329409]
[1748860307385,0.8166,2485.4,2484.9,4.269]
[1748860307537,8.8166,2485.4,2485.0,0.9058095]
[1748860307733,8.8166,2485.4,2484.9,4.269]
[1748860308259,8.8166,2485.4,2484.9,8.29328622]
[1748860308464,8.8166,2485.4,2484.9,8.2932162]
[1748860309366,8.8166,2485.4,2485.0,4.4089228]
[1748860309543,8.8166,2485.4,2484.9,8.29323951]
[1748860309883,8.8166,2485.4,2485.0,0.38482106]
[1748860310048,8.8166,2485.4,2484.9,8.29323951]
[1748860310253,8.8166,2485.4,2485.0,0.38482078]
[1748860310584,8.8166,2485.4,2484.9,8.29323951]
[1748860310743,8.8166,2485.4,2485.0,0.3848817]
[1748860310943,8.8166,2485.4,2484.9,8.29323951]
[1748860311159,8.8166,2485.4,2485.0,1.29067718]
[1748860311355,8.8166,2485.4,2485.0,0.90579395]
[1748860312835,12.84011429,2485.4,2485.0,0.90579395]
[1748860313139,0.8166,2485.4,2485.0,0.90579395]
[1748860313575,12.02326299,2485.6,2485.0,4.9299356]
[1748860313775,12.85386299,2485.6,2485.1,0.38507994]
[1748860313966,12.85386299,2485.6,2485.2,5.43]
[1748860314189,8.8306,2485.6,2485.2,5.43]
[1748860314475,0.8306,2485.8,2485.4,4.02344762]
[1748860314677,0.01,2485.9,2485.3,4.02365911]
[1748860314678,0.01,2485.9,2485.5,8.33054755]
[1748860314982,0.01,2485.9,2485.6,4.02316674]
[1748860315155,0.01,2485.9,2485.5,9.09735449]
[1748860315356,0.01,2485.9,2485.5,10.00315475]
[1748860315667,0.01,2485.9,2485.6,5.429]
[1748860315668,8.0,2485.8,2485.6,5.429]
[1748860315867,0.01,2485.9,2485.6,5.429]
[1748860316575,0.01,2485.9,2485.6,10.27490841]
[1748860316775,0.01,2485.9,2485.7,4.02292608]
[1748860316955,0.01,2485.9,2485.6,10.27489079]
[1748860317540,0.01,2485.9,2485.7,4.02295988]
[1748860317776,0.01,2485.9,2485.8,4.0630732]
[1748860317988,0.01,2485.9,2485.8,4.44796548]
[1748860318204,0.01,2485.9,2485.8,4.40774206]
[1748860318662,0.01,2485.9,2485.8,4.4076358]
[1748860318862,0.01,2485.9,2485.8,4.02284978]
[1748860319062,0.01,2485.9,2485.8,5.05031476]
[1748860319373,0.01,2485.9,2485.8,1.02746498]
[1748860319572,0.01,2485.9,2485.8,5.05031476]
[1748860319893,0.01,2485.9,2485.8,5.43501394]
[1748860320253,0.01,2485.9,2485.8,1.41216416]
[1748860320459,0.01,2485.9,2485.4,4.80648364]
[1748860320759,0.01,2485.9,2485.6,4.02309022]
[1748860320960,0.01,2485.9,2485.7,0.38469062]
[1748860321296,0.01,2485.9,2485.8,4.266]
[1748860322598,0.8015,2485.7,2484.5,0.7909]
[1748860322774,3.56516383,2485.4,2484.6,5.85191883]
[1748860322972,3.56516383,2485.4,2484.9,4.02423018]
[1748860323473,3.56516383,2485.4,2485.0,4.265]
[1748860323899,0.762,2485.0,2484.0,8.69]
[1748860324081,3.56516383,2484.9,2484.5,1.162]
[1748860324281,7.58947383,2484.9,2484.5,1.162]
[1748860324484,7.58989019,2484.7,2484.5,1.162]
[1748860324658,7.58983366,2484.7,2484.5,1.158]
[1748860324857,4.78693014,2484.6,2484.5,1.158]
[1748860325066,8.40341717,2484.6,2483.1,4.03713771]
[1748860325310,0.8288,2483.5,2483.2,0.38483353]
[1748860325593,0.8288,2483.5,2483.1,0.01]
[1748860325793,4.8554342,2483.5,2483.1,0.01]
[1748860326496,4.85540864,2483.5,2483.1,0.01]
[1748860326715,0.8288,2483.5,2483.2,1.158]
[1748860327691,0.8288,2483.5,2483.2,5.18493739]
[1748860327904,0.8288,2483.5,2483.3,1.158]
[1748860329804,0.8288,2483.5,2483.3,1.13511972]
[1748860330995,8.0,2483.7,2483.3,5.16195153]
[1748860331521,4.02649339,2483.6,2483.3,1.159]
[1748860331692,18.8773323,2483.7,2483.3,1.159]
[1748860331893,21.24419993,2483.7,2483.3,1.159]
[1748860333216,4.79150523,2483.8,2483.3,1.159]
[1748860335218,4.02628714,2483.7,2483.3,1.159]
[1748860335433,4.02664665,2483.5,2483.3,1.159]
[1748860335588,4.02667088,2483.5,2483.3,1.159]
[1748860336107,6.85102014,2483.7,2483.1,0.01]
[1748860336108,4.7963949,2483.3,2483.1,0.01]
[1748860336435,5.59448387,2483.2,2483.1,0.01]
[1748860337429,1.56742202,2483.2,2483.1,0.01]
[1748860337802,5.59448387,2483.2,2483.1,0.01]
[1748860342957,6.00201344,2483.2,2483.1,0.01]
[1748860343427,15.32821344,2483.2,2483.1,0.01]
[1748860347110,15.32821344,2483.2,2482.2,1.159]
[1748860347319,4.02837754,2482.4,2482.2,1.159]
[1748860347554,4.02811106,2482.6,2482.2,1.159]
[1748860347854,4.02820851,2482.5,2482.2,1.159]
[1748860348015,4.78999738,2482.5,2482.2,1.159]
[1748860348218,4.02843512,2482.4,2482.2,1.159]
[1748860348459,4.91027837,2482.4,2482.2,1.159]
[1748860348653,0.88184325,2482.4,2482.2,1.159]
[1748860348843,4.91030033,2482.4,2482.2,1.159]
[1748860350127,0.88184325,2482.4,2482.2,1.159]
[1748860350532,4.91026639,2482.4,2482.2,1.159]
[1748860350747,0.56720664,2482.3,2482.2,1.159]
[1748860350943,4.59581441,2482.3,2482.1,0.01]
[1748860351260,20.07868423,2482.2,2482.1,0.01]
[1748860351789,13.082,2482.2,2482.1,0.01]
[1748860352146,17.11068423,2482.2,2482.1,0.01]
[1748860352470,19.65175966,2482.2,2482.1,0.01]
[1748860355036,20.20175966,2482.2,2482.1,0.01]
[1748860356093,22.61975966,2482.2,2482.1,0.01]
[1748860356851,22.56095966,2482.2,2482.1,0.01]
[1748860360175,15.87695966,2482.2,2482.1,0.01]
[1748860360371,22.56095966,2482.2,2482.1,0.01]
[1748860363656,18.29495966,2482.2,2482.1,0.01]
[1748860363856,22.56095966,2482.2,2482.1,0.01]
[1748860364690,15.87695966,2482.2,2482.1,0.01]
[1748860364876,4.78588423,2482.2,2482.1,0.01]
[1748860365078,4.02868423,2482.2,2482.1,0.01]
[1748860365388,12.02868423,2482.2,2482.1,0.01]
[1748860366455,8.0,2482.2,2482.1,0.01]
[1748860367959,12.02839027,2482.4,2482.1,0.01]
[1748860368179,8.0,2482.4,2482.1,0.01]
[1748860368426,12.02845245,2482.4,2482.1,0.01]
[1748860369692,8.0,2482.4,2482.1,0.01]
[1748860370277,2.97387703,2482.7,2482.1,0.01]
[1748860370278,6.23435681,2482.7,2482.1,0.01]
[1748860370512,2.20647703,2482.7,2482.2,0.7512]
[1748860370717,2.20647703,2482.7,2482.4,4.02826559]
[1748860371080,2.20647703,2482.7,2482.3,4.02842367]
[1748860371286,2.20647703,2482.7,2482.4,4.02835454]
[1748860371512,2.20647703,2482.7,2482.4,4.02831878]
[1748860373924,2.20647703,2482.7,2482.3,4.02841139]
[1748860375081,2.20647703,2482.7,2482.4,4.02833632]
[1748860375520,2.20647703,2482.7,2482.5,4.02818922]
[1748860375726,2.20647703,2482.7,2482.4,4.02833632]
[1748860375727,2.20647703,2482.7,2482.6,4.02803512]
[1748860376082,2.20647703,2482.7,2482.5,4.02812335]
[1748860376286,2.20647703,2482.7,2482.4,4.02826921]
[1748860376886,2.20647703,2482.7,2482.5,4.02819697]
[1748860377627,2.20647703,2482.7,2482.6,0.7776]
[1748860380523,2.20647703,2482.7,2482.6,5.28622631]
[1748860380999,2.20647703,2482.7,2482.6,1.25819119]
[1748860381200,2.20647703,2482.7,2482.6,4.80563512]
[1748860381396,2.20647703,2482.7,2482.6,0.7776]
[1748860381637,6.23442485,2482.7,2482.2,5.95384948]
[1748860381804,6.23442485,2482.7,2482.2,1.9252]
[1748860381805,2.20647703,2482.7,2482.2,1.9252]
[1748860382000,6.23441275,2482.7,2482.2,1.9252]
[1748860382197,6.23441275,2482.7,2482.2,5.95384525]
[1748860382403,6.23441275,2482.7,2482.2,1.9252]
[1748860382600,2.20647703,2482.7,2482.2,1.9252]
[1748860382805,2.20647703,2482.7,2482.3,4.02852162]
[1748860383407,2.20647703,2482.7,2482.4,4.0282474]
[1748860383807,2.20647703,2482.7,2482.3,4.02845905]
[1748860384616,2.20647703,2482.7,2482.2,1.9252]
[1748860384808,2.20647703,2482.7,2482.2,2.52162015]
[1748860385007,2.20647703,2482.7,2482.5,4.02813471]
[1748860385197,2.20647703,2482.7,2482.6,4.87011595]
[1748860385401,2.20647703,2482.7,2482.6,4.87011178]
[1748860385712,2.20647703,2482.7,2482.6,4.82983512]
[1748860385908,2.20647703,2482.7,2482.6,5.712486]
[1748860386110,4.262,2483.6,2483.2,4.83717982]
[1748860386310,4.84164501,2483.8,2483.3,4.02685903]
[1748860386507,0.8154,2484.0,2483.3,0.04026705]
[1748860386858,4.02553127,2484.2,2483.6,4.0263226]
[1748860387011,4.74509313,2484.1,2483.7,0.8102]
[1748860387212,4.74509313,2484.1,2483.5,4.0265067]
[1748860387213,4.02579032,2484.0,2483.5,4.8367067]
[1748860387412,4.50982553,2484.1,2483.6,4.02637556]
[1748860387605,5.1411056,2484.1,2483.6,4.02637556]
[1748860388007,5.1411056,2484.1,2483.5,4.83663496]
[1748860388208,0.91666366,2484.0,2483.6,4.02632515]
[1748860388443,0.91666366,2484.0,2483.6,4.02632258]
[1748860389398,0.91666366,2484.0,2483.7,4.02621798]
[1748860389606,8.0,2484.3,2483.6,1.154]
[1748860389799,4.26,2484.5,2484.0,0.8138]
[1748860390025,4.0251889,2484.4,2484.0,0.8138]
[1748860390237,4.66656529,2484.5,2484.0,0.8138]
[1748860390238,0.40656529,2484.5,2484.0,0.8138]
[1748860390542,0.40656529,2484.5,2483.8,0.8138]
[1748860390543,7.76834667,2484.4,2483.8,0.8138]
[1748860390729,10.87674156,2484.1,2483.7,1.154]
[1748860390916,4.02576489,2484.0,2483.7,1.154]
[1748860391242,10.87669077,2484.1,2483.7,1.154]
[1748860391548,11.28221768,2484.1,2483.7,1.154]
[1748860391747,1.53077042,2484.0,2483.7,1.154]
[1748860392610,5.55659757,2484.0,2483.7,1.154]
[1748860392966,1.53077042,2484.0,2483.7,1.154]
[1748860394087,1.53077042,2484.0,2483.7,5.18024998]
[1748860394398,0.40549733,2484.1,2483.8,4.02600667]
[1748860394692,4.259,2484.2,2483.8,4.02600667]
[1748860394894,4.259,2484.2,2483.7,1.154]
[1748860395069,4.02569276,2484.1,2483.7,1.154]
[1748860395273,0.40932164,2484.1,2483.7,5.18020408]
[1748860395582,4.258,2484.2,2483.7,5.18020408]
[1748860395872,4.52816843,2484.1,2483.7,1.154]
[1748860396172,4.02576636,2484.0,2483.7,1.154]
[1748860396966,4.02576598,2484.0,2483.7,1.154]
[1748860397748,0.7585,2483.9,2483.2,0.8151]
[1748860397955,1.61119901,2483.9,2483.3,0.0402649]
[1748860398160,1.61119901,2483.9,2483.4,4.02658713]
[1748860399166,1.61119901,2483.9,2483.3,4.02679131]
[1748860399376,5.63719389,2483.9,2483.3,4.02679131]
[1748860399578,4.99244302,2483.8,2483.2,0.8151]
[1748860399777,4.99244302,2483.8,2483.3,4.02688997]
[1748860399939,0.96630348,2483.8,2483.2,0.8151]
[1748860400139,5.0342,2483.7,2483.1,1.154]
[1748860400342,4.02683812,2483.4,2483.1,1.154]
[1748860400860,4.02665378,2483.5,2483.1,1.154]
[1748860401266,5.31165588,2483.6,2483.1,1.154]
[1748860401954,4.257,2483.5,2483.1,5.18119648]
[1748860402138,8.28358506,2483.5,2483.1,1.154]
[1748860402342,4.257,2483.5,2483.1,1.154]
[1748860402542,4.257,2483.5,2483.1,5.18122305]
[1748860402872,4.257,2483.5,2483.1,1.154]
[1748860404278,4.02697799,2483.3,2483.1,1.154]
[1748860404496,4.02716999,2483.2,2482.8,1.9159]
[1748860404855,4.02724089,2483.1,2482.8,0.7619]
[1748860405047,4.02714495,2483.2,2482.7,1.154]
[1748860405249,4.02727689,2483.1,2482.7,1.154]
[1748860405583,4.91261622,2483.1,2482.7,1.154]
[1748860405885,4.91259948,2483.1,2482.7,1.154]
[1748860406346,4.02748305,2483.0,2482.7,1.154]
[1748860406587,4.91253045,2483.1,2482.7,1.154]
[1748860407081,0.88529723,2483.1,2482.7,1.154]
[1748860407251,4.91261396,2483.1,2482.7,1.154]
[1748860407453,4.02739795,2483.0,2482.7,1.154]
[1748860408470,6.03227444,2483.0,2482.7,1.154]
[1748860408672,2.0047951,2483.0,2482.7,1.154]
[1748860408876,4.02739939,2483.0,2482.7,1.154]
[1748860409074,9.16960402,2483.1,2482.7,1.154]
[1748860409465,4.02750748,2483.0,2482.7,1.154]
[1748860409877,4.257,2483.1,2482.7,5.18186327]
[1748860410271,4.257,2483.1,2482.7,1.154]
[1748860410272,8.28423119,2483.1,2482.7,1.154]
[1748860410482,4.02753339,2483.0,2482.7,1.154]
[1748860411579,4.83903764,2483.1,2482.7,1.154]
[1748860411779,4.02738752,2483.0,2482.7,1.154]
[1748860412005,4.02756956,2482.9,2482.6,0.7619]
[1748860412318,0.40275696,2482.8,2482.4,4.82705135]
[1748860412621,4.0281462,2482.6,2482.3,1.154]
[1748860412916,4.02835965,2482.4,2482.3,1.154]
[1748860414409,4.02859394,2482.3,2482.1,0.01]
[1748860414783,4.02868423,2482.2,2482.1,0.01]
[1748860415383,12.77898423,2482.2,2482.1,0.01]
[1748860416782,0.95275696,2482.8,2482.1,0.01]
[1748860416783,8.0,2482.4,2482.1,4.03882143]
[1748860417127,12.02847971,2482.4,2482.1,0.01]
[1748860418115,4.02836226,2482.4,2482.1,0.01]
[1748860418308,4.02835965,2482.4,2482.1,0.01]
[1748860418507,4.256,2482.5,2482.1,0.01]
[1748860418709,12.75875,2482.5,2482.1,0.01]
[1748860418932,4.02868128,2482.3,2482.1,0.01]
[1748860419225,4.02868423,2482.2,2482.1,0.01]
[1748860419409,4.79508423,2482.2,2482.1,0.01]
[1748860419925,5.20436556,2482.2,2482.1,0.01]
[1748860420218,6.81277226,2482.2,2482.1,0.01]
[1748860420409,7.36277226,2482.2,2482.1,0.01]
[1748860420730,14.81277226,2482.2,2482.1,0.01]
[1748860420921,14.04637226,2482.2,2482.1,0.01]
[1748860421128,10.01768803,2482.2,2482.1,0.01]
[1748860421422,14.27368803,2482.2,2482.1,0.01]
[1748860422428,9.6084067,2482.2,2482.1,0.01]
[1748860422624,0.7966,2482.4,2482.1,0.01]
[1748860422923,4.256,2482.3,2482.1,0.01]
[1748860424222,8.28452389,2482.3,2482.1,0.01]
[1748860424389,4.02868423,2482.2,2482.1,0.01]
[1748860424594,8.28460753,2482.3,2482.1,0.01]
[1748860424789,5.25999363,2482.2,2482.1,0.01]
[1748860425106,1.6381744,2482.2,2482.1,0.01]
[1748860425424,5.66685863,2482.2,2482.1,0.01]
[1748860425628,14.44325863,2482.2,2482.1,0.01]
[1748860427234,9.6381744,2482.2,2482.1,0.01]
[1748860427435,4.662865,2482.2,2482.1,0.01]
[1748860429302,4.256,2482.2,2482.1,0.01]
[1748860429528,8.0,2482.4,2482.1,0.01]
[1748860429837,12.255,2482.4,2482.1,0.01]
[1748860430039,4.02868423,2482.2,2482.1,0.01]
[1748860430908,5.37960938,2482.3,2482.1,0.01]
[1748860431745,5.37961666,2482.3,2482.1,0.01]
[1748860432439,1.351025,2482.3,2482.1,0.01]
[1748860432610,1.75937161,2482.3,2482.1,0.01]
[1748860432810,5.7879613,2482.3,2482.1,0.01]
[1748860433132,2.03693778,2482.2,2482.1,0.01]
[1748860435110,6.06562201,2482.2,2482.1,0.01]
[1748860436149,2.03693778,2482.2,2482.1,0.01]
[1748860436750,6.01337161,2482.3,2482.1,0.01]
[1748860437111,10.04189364,2482.3,2482.1,0.01]
[1748860437444,1.75937161,2482.3,2482.1,0.01]
[1748860437753,8.0,2482.4,2482.1,4.03876055]
[1748860437930,8.0,2482.4,2482.2,0.7923]
[1748860438310,12.02844971,2482.4,2482.2,0.7923]
[1748860438534,12.02850793,2482.4,2482.1,0.01]
[1748860438754,5.70705016,2482.3,2482.1,0.01]
[1748860439437,6.10636207,2482.3,2482.1,0.01]
[1748860440044,4.02868423,2482.2,2482.1,0.01]
[1748860440280,6.10644539,2482.3,2482.1,0.01]
[1748860442064,4.02868423,2482.2,2482.1,0.01]
[1748860442265,5.43933642,2482.2,2482.1,0.01]
[1748860442568,5.98933642,2482.2,2482.1,0.01]
[1748860443063,16.40733642,2482.2,2482.1,0.01]
[1748860443288,17.19663642,2482.2,2482.1,0.01]
[1748860448877,4.0300827,2481.4,2481.2,0.7854]
[1748860449038,4.02993262,2481.5,2481.1,0.01]
[1748860449370,9.06422207,2481.6,2481.1,0.01]
[1748860449586,9.06424975,2481.6,2481.1,4.04045437]
[1748860449795,1.66671033,2481.5,2481.2,4.03020626]
[1748860449953,4.253,2481.6,2481.2,4.03020626]
[1748860450157,8.28268923,2481.6,2481.1,4.04040588]
[1748860450359,8.28268923,2481.6,2481.2,0.38601093]
[1748860450572,8.28268923,2481.6,2481.1,4.04040588]
[1748860450777,8.28268923,2481.6,2481.2,0.38591669]
[1748860450971,4.0298324,2481.5,2481.1,4.04040588]
[1748860451168,4.0298324,2481.5,2481.2,0.38591469]
[1748860451376,4.02999577,2481.4,2481.1,0.01]
[1748860451591,4.02990991,2481.5,2481.1,0.01]
[1748860451892,4.02998376,2481.4,2481.1,0.01]
[1748860452692,1.24378864,2481.4,2481.1,0.01]
[1748860452892,4.03026516,2481.3,2481.1,0.01]
[1748860454194,4.03017837,2481.3,2481.1,0.01]
[1748860454391,4.03030791,2481.2,2481.1,0.01]
[1748860454960,4.0302178,2481.3,2481.1,0.01]
[1748860455272,0.93040005,2481.2,2481.1,0.01]
[1748860455782,4.96070796,2481.2,2481.1,0.01]
[1748860456289,0.93040005,2481.2,2481.1,0.01]
[1748860456515,4.252,2481.2,2481.1,0.01]
[1748860456689,17.52577286,2481.4,2481.1,0.8187]
[1748860456860,1.5555863,2481.6,2481.2,4.03029784]
[1748860457054,4.02956792,2481.7,2481.2,4.03029784]
[1748860457259,8.0,2481.7,2481.2,4.03019808]
[1748860457516,12.252,2481.7,2481.1,0.8187]
[1748860457668,4.02948292,2481.8,2481.2,4.03019219]
[1748860457874,4.02921205,2481.9,2481.3,4.0300537]
[1748860458104,4.252,2481.9,2481.4,4.84848958]
[1748860458300,8.0,2481.8,2481.4,4.84848958]
[1748860458587,8.0,2481.8,2481.4,4.84858266]
[1748860458809,8.0,2481.8,2481.4,0.8186]
[1748860458959,12.02942651,2481.8,2481.4,0.8186]
[1748860459373,12.02942651,2481.8,2481.1,1.159]
[1748860459374,4.36728712,2481.7,2481.1,0.8044]
[1748860459587,4.02972707,2481.6,2481.1,4.83478782]
[1748860459793,4.02985304,2481.5,2481.1,0.8044]
[1748860459975,4.03001248,2481.4,2481.1,0.8044]
[1748860460303,4.03014226,2481.4,2481.1,0.8044]
[1748860460503,4.03023716,2481.3,2481.1,0.8044]
[1748860460712,4.03030791,2481.2,2481.1,0.01]
[1748860462718,12.03030791,2481.2,2481.1,0.01]
[1748860463069,15.78170791,2481.2,2481.1,0.01]
[1748860467171,4.03136128,2480.6,2480.2,0.8026]
[1748860467900,7.6046484,2480.6,2480.2,0.8026]
[1748860468106,7.6046484,2480.6,2480.2,4.83451323]
[1748860468107,5.24405776,2480.6,2480.2,4.83451323]
[1748860468414,8.2822042,2480.7,2480.2,4.83446353]
[1748860468610,4.251,2480.7,2480.2,4.83446353]
[1748860468915,8.28218352,2480.7,2480.2,4.83446353]
[1748860469407,8.28220475,2480.7,2480.2,4.83443015]
[1748860470311,3.57328712,2480.6,2480.2,0.8026]
[1748860470513,4.4015076,2480.6,2480.2,0.8026]
[1748860470822,4.03145603,2480.5,2480.2,0.8026]
[1748860471406,4.85959775,2480.6,2480.2,0.8026]
[1748860471615,0.82822048,2480.6,2480.2,0.8026]
[1748860471913,4.251,2480.7,2480.4,0.8149]
[1748860472115,4.03054696,2481.1,2480.4,0.8149]
[1748860472285,4.251,2481.2,2480.6,0.8149]
[1748860472492,4.03079661,2480.9,2480.6,0.8149]
[1748860472887,4.03096643,2480.8,2480.6,0.8149]
[1748860474709,4.03086815,2480.9,2480.6,0.8149]
[1748860474872,4.03090527,2480.9,2480.6,0.8149]
[1748860475426,1.5718286,2480.9,2480.6,0.8149]
[1748860475735,0.40834095,2480.9,2480.6,0.8149]
[1748860475872,4.43920713,2480.9,2480.6,0.8149]
[1748860476221,4.03081126,2480.9,2480.6,0.8149]
[1748860476635,4.0308143,2480.9,2480.6,0.8149]
[1748860476797,4.25,2481.0,2480.6,0.8149]
[1748860476999,0.39986939,2481.0,2480.6,0.8149]
[1748860477180,8.28065064,2481.0,2480.6,0.8149]
[1748860477381,12.03055979,2481.1,2480.6,4.84613484]
[1748860477579,8.0,2481.0,2480.6,0.8149]
[1748860477882,4.0308043,2480.9,2480.6,0.8149]
[1748860478186,4.03097775,2480.8,2480.6,0.8149]
[1748860478515,4.0312248,2480.7,2480.4,1.15]
[1748860478680,4.03120266,2480.7,2480.3,1.9541]
[1748860479006,4.03129211,2480.6,2480.3,1.9541]
[1748860479310,4.03136419,2480.6,2480.3,0.8071]
[1748860480308,4.03122104,2480.7,2480.3,0.8071]
[1748860480905,4.03134533,2480.6,2480.3,0.8071]
[1748860481619,4.03148802,2480.5,2480.3,0.8071]
[1748860481841,4.03136563,2480.6,2480.3,0.8071]
[1748860484292,4.03121186,2480.7,2480.3,0.8071]
[1748860485128,4.03129563,2480.6,2480.3,0.8071]
[1748860485822,8.28029563,2480.6,2480.3,0.8071]
[1748860486425,4.03146365,2480.5,2480.3,0.8071]
[1748860486632,4.03146365,2480.5,2480.2,1.9635]
[1748860487223,8.28034812,2480.6,2480.2,1.9635]
[1748860487535,10.07193611,2480.6,2480.2,5.99541116]
[1748860487695,10.07193611,2480.6,2480.2,1.9635]
[1748860489335,10.07193611,2480.6,2480.2,5.99541349]
[1748860490103,6.04059539,2480.6,2480.2,5.99541349]
[1748860490334,10.07188403,2480.6,2480.2,5.99541349]
[1748860490533,10.07188403,2480.6,2480.3,0.38624576]
[1748860490698,10.07188403,2480.6,2480.2,5.99541349]
[1748860490900,10.07188403,2480.6,2480.3,0.38624575]
[1748860491231,4.031465,2480.5,2480.1,0.01]
[1748860491398,10.07196475,2480.6,2480.1,4.04207294]
[1748860491929,10.07196475,2480.6,2480.2,0.38638206]
[1748860492149,10.07196475,2480.6,2480.3,0.38638206]